bitfinex-derivatives/quotes_BTCF0:USTF0_20251229
["timestamp","ask_amount","ask_price","bid_price","bid_amount"]
[1766985678501,0.03634041,90196.0,90186.0,0.08408]
[1766985678701,0.02524181,90195.0,90186.0,0.08408]
[1766985682409,0.00016631,90206.0,90186.0,0.08408]
[1766985682809,0.0110983,90198.0,90186.0,0.08408]
[1766985683610,0.0110983,90198.0,90186.0,0.03]
[1766985683810,0.0110983,90198.0,90187.0,0.05568]
[1766985684012,0.0110983,90198.0,90187.0,0.08568]
[1766985687209,0.0110983,90198.0,90187.0,0.03]
[1766985690210,0.09448631,90206.0,90187.0,0.03]
[1766985690411,0.0110995,90188.0,90187.0,0.03]
[1766985690611,0.0110995,90188.0,90181.0,0.00016631]
[1766985690612,0.0110994,90189.0,90181.0,1e-08]
[1766985690804,0.0110991,90192.0,90181.0,0.03000001]
[1766985691413,0.0110987,90195.0,90181.0,0.03000001]
[1766985694413,0.0250951,90194.0,90181.0,0.03000001]
[1766985694613,0.0250951,90193.0,90181.0,0.03000001]
[1766985694814,0.0110993,90190.0,90181.0,0.03000001]
[1766985695110,0.0110993,90190.0,90181.0,0.08568001]
[1766985698319,0.0110996,90188.0,90181.0,0.08568001]
[1766985698821,0.0110992,90191.0,90181.0,0.08568001]
[1766985699717,0.0110992,90191.0,90181.0,0.03000001]
[1766985699922,0.0110992,90191.0,90182.0,0.05568]
[1766985700117,0.0110989,90194.0,90182.0,0.03]
[1766985700315,0.0110991,90192.0,90182.0,0.03]
[1766985700515,0.02508783,90191.0,90182.0,0.03]
[1766985702311,0.0110987,90195.0,90182.0,0.03]
[1766985702518,0.02508735,90194.0,90182.0,0.03]
[1766985702714,0.02508735,90193.0,90182.0,0.03]
[1766985702914,0.02508735,90192.0,90182.0,0.03]
[1766985703116,0.02508735,90191.0,90182.0,0.03]
[1766985703316,0.09448631,90206.0,90182.0,0.03]
[1766985703516,0.02508672,90205.0,90182.0,0.03]
[1766985703716,0.0110981,90200.0,90182.0,0.0411002]
[1766985703921,0.0110983,90198.0,90182.0,0.0411002]
[1766985704119,0.02508672,90197.0,90182.0,0.0411002]
[1766985704323,0.02508672,90196.0,90182.0,0.0411002]
[1766985704520,0.02508672,90195.0,90182.0,0.0411002]
[1766985704718,0.0110983,90198.0,90182.0,0.0411002]
[1766985704919,0.02508696,90197.0,90182.0,0.0411002]
[1766985705118,0.02508696,90196.0,90182.0,0.0411002]
[1766985705420,0.02508696,90195.0,90182.0,0.0411002]
[1766985705627,0.0110986,90196.0,90182.0,0.03]
[1766985705822,0.02515035,90195.0,90182.0,0.03]
[1766985706126,0.02515035,90194.0,90182.0,0.03]
[1766985706425,0.0110986,90196.0,90182.0,0.03]
[1766985706628,0.02515082,90195.0,90182.0,0.03]
[1766985706827,0.02515082,90194.0,90182.0,0.03]
[1766985707027,0.0110986,90196.0,90182.0,0.03]
[1766985707227,0.02515087,90195.0,90182.0,0.03]
[1766985707430,0.02515087,90194.0,90182.0,0.03]
[1766985707616,0.0110986,90196.0,90182.0,0.03]
[1766985707817,0.02515132,90195.0,90182.0,0.03]
[1766985708020,0.03625012,90194.0,90182.0,0.03]
[1766985708226,0.0110988,90194.0,90182.0,0.03]
[1766985708627,0.0110991,90192.0,90182.0,0.03]
[1766985709023,0.23057635,90192.0,90182.0,0.03]
[1766985709221,0.0110991,90192.0,90182.0,0.03]
[1766985709420,0.21947725,90192.0,90181.0,1e-08]
[1766985709623,0.21947725,90192.0,90181.0,0.03]
[1766985709824,0.02515208,90191.0,90179.0,0.05568]
[1766985710026,0.21947725,90192.0,90179.0,0.08568]
[1766985711328,0.21947725,90190.0,90179.0,0.06568]
[1766985711531,0.02515139,90189.0,90179.0,0.06568]
[1766985712130,0.0111,90185.0,90179.0,0.06568]
[1766985712628,0.21947725,90190.0,90176.0,0.05584631]
[1766985712931,0.0111002,90184.0,90176.0,0.06584631]
[1766985715627,0.21947725,90190.0,90176.0,1e-08]
[1766985715827,0.02514487,90189.0,90176.0,1e-08]
[1766985716134,0.02514487,90188.0,90176.0,1e-08]
[1766985716431,0.02514487,90187.0,90176.0,1e-08]
[1766985716632,0.0111008,90178.0,90163.0,0.09436]
[1766985716831,0.0111008,90178.0,90164.0,0.05564]
[1766985717034,0.0111008,90178.0,90164.0,0.08564]
[1766985719128,0.21964356,90180.0,90164.0,0.08564]
[1766985720033,0.05568,90183.0,90164.0,0.08564]
[1766985720426,0.05568,90183.0,90168.0,0.0111019]
[1766985720627,0.03252,90183.0,90170.0,0.23057895]
[1766985720827,0.03252,90183.0,90172.0,0.0111014]
[1766985721028,0.21947725,90200.0,90172.0,0.03]
[1766985721229,0.00016631,90187.0,90173.0,0.0111013]
[1766985721522,0.0110994,90190.0,90173.0,0.0411013]
[1766985721729,0.02510868,90189.0,90173.0,0.0411013]
[1766985721933,0.02510868,90188.0,90173.0,0.0411013]
[1766985722128,0.0110994,90190.0,90173.0,0.0411013]
[1766985722337,0.02510799,90189.0,90175.0,0.0111011]
[1766985722538,0.02510799,90188.0,90175.0,0.0411011]
[1766985722837,0.02510799,90187.0,90175.0,0.0411011]
[1766985723138,0.02510799,90186.0,90175.0,0.0411011]
[1766985723333,0.02510799,90185.0,90175.0,0.0411011]
[1766985723538,0.00016631,90191.0,90175.0,0.0411011]
[1766985728736,0.21947725,90190.0,90175.0,0.03]
[1766985730336,0.0110995,90189.0,90175.0,0.03]
[1766985732939,1e-08,90191.0,90179.0,0.21947725]
[1766985733147,0.05789723,90203.0,90181.0,0.0111004]
[1766985733446,0.05789723,90203.0,90184.0,0.0111]
[1766985733743,0.05789723,90203.0,90184.0,0.0411]
[1766985734146,0.05806354,90203.0,90184.0,0.0411]
[1766985734346,0.05806354,90203.0,90186.0,0.0110997]
[1766985734546,0.05806354,90203.0,90186.0,0.0410997]
[1766985735448,0.02500954,90202.0,90186.0,0.0410997]
[1766985735640,0.02500954,90201.0,90186.0,0.0410997]
[1766985735836,0.02500954,90200.0,90186.0,0.0410997]
[1766985736041,0.05806354,90203.0,90186.0,0.0410997]
[1766985736242,0.0250098,90202.0,90186.0,0.0410997]
[1766985736442,0.0250098,90201.0,90186.0,0.0410997]
[1766985736643,0.0250098,90200.0,90186.0,0.0410997]
[1766985736845,0.05806354,90203.0,90186.0,0.0410997]
[1766985737148,0.02500786,90202.0,90186.0,0.0410997]
[1766985737348,0.02500786,90201.0,90186.0,0.0410997]
[1766985737547,0.02500786,90200.0,90186.0,0.0410997]
[1766985737850,0.05806354,90203.0,90186.0,0.0410997]
[1766985738048,0.02500598,90202.0,90186.0,0.0410997]
[1766985738240,0.02500598,90201.0,90186.0,0.0410997]
[1766985738439,0.05806354,90203.0,90186.0,0.0410997]
[1766985738640,0.02500414,90202.0,90186.0,0.0410997]
[1766985738837,0.02500414,90201.0,90186.0,0.0410997]
[1766985739041,0.05806354,90203.0,90186.0,0.0410997]
[1766985739241,0.02500415,90202.0,90186.0,0.0410997]
[1766985739446,0.02500415,90201.0,90186.0,0.0410997]
[1766985739648,0.05806354,90203.0,90186.0,0.0410997]
[1766985739850,0.02500319,90202.0,90186.0,0.0410997]
[1766985740042,0.02500319,90201.0,90186.0,0.0410997]
[1766985740244,0.05806354,90203.0,90186.0,0.0410997]
[1766985740445,0.0250018,90202.0,90186.0,0.0410997]
[1766985740646,0.0250018,90201.0,90186.0,0.0410997]
[1766985740843,0.05806354,90203.0,90186.0,0.0410997]
[1766985741044,0.02500375,90202.0,90186.0,0.0410997]
[1766985741247,0.02500375,90201.0,90188.0,0.0110994]
[1766985741544,0.05806354,90203.0,90188.0,0.0410994]
[1766985741751,0.02499853,90202.0,90188.0,0.0410994]
[1766985741954,0.02499853,90201.0,90188.0,0.0410994]
[1766985742155,0.05806354,90203.0,90188.0,0.0410994]
[1766985742445,0.02499677,90202.0,90188.0,0.0410994]
[1766985742651,0.05806354,90203.0,90188.0,0.0410994]
[1766985742853,0.02499683,90202.0,90188.0,0.0410994]
[1766985743053,0.05806354,90203.0,90188.0,0.0410994]
[1766985743252,0.02499684,90202.0,90188.0,0.0410994]
[1766985743443,0.05806354,90203.0,90188.0,0.0410994]
[1766985743444,0.02499684,90201.0,90188.0,0.0410994]
[1766985743645,0.05806354,90203.0,90188.0,0.0410994]
[1766985743845,0.02499543,90202.0,90188.0,0.0410994]
[1766985744047,0.02499543,90201.0,90188.0,0.0410994]
[1766985744245,0.05806354,90203.0,90188.0,0.0410994]
[1766985744554,0.02499491,90202.0,90188.0,0.0410994]
[1766985744753,0.02499491,90201.0,90188.0,0.0410994]
[1766985744955,0.05806354,90203.0,90188.0,0.0410994]
[1766985745147,0.02499507,90202.0,90188.0,0.0410994]
[1766985745344,0.05806354,90203.0,90188.0,0.0410994]
[1766985745661,0.05806354,90203.0,90188.0,0.03]
[1766985746044,0.0110978,90202.0,90188.0,0.03]
[1766985750150,0.0110981,90200.0,90188.0,0.03]
[1766985755361,0.05806354,90203.0,90188.0,0.03]
[1766985755560,0.21947725,90200.0,90188.0,0.03]
[1766985755862,0.02501162,90199.0,90171.0,0.05564]
[1766985756165,0.0110999,90186.0,90171.0,0.08564]
[1766985756470,0.0111006,90180.0,90171.0,0.08564]
[1766985759166,0.0111006,90180.0,90171.0,0.03]
[1766985759374,0.0111006,90180.0,90172.0,0.05564]
[1766985759560,0.0111006,90180.0,90173.0,0.05564]
[1766985759760,0.0111006,90180.0,90173.0,0.08564]
[1766985760656,0.00016631,90185.0,90173.0,0.08564]
[1766985761668,0.0111004,90182.0,90173.0,0.08564]
[1766985762565,0.0111004,90182.0,90173.0,0.03]
[1766985769386,0.0111007,90179.0,90173.0,0.03]
[1766985770588,0.0111003,90182.0,90173.0,0.03]
[1766985780602,0.00016631,90185.0,90172.0,0.05564]
[1766985780603,0.0111008,90178.0,90172.0,0.05564]
[1766985780901,0.0111008,90178.0,90172.0,0.06564]
[1766985781400,0.0111005,90181.0,90172.0,0.06564]
[1766985781805,0.0111004,90182.0,90172.0,0.06564]
[1766985782202,0.00016631,90185.0,90172.0,0.06564]
[1766985783299,0.00016631,90185.0,90168.0,0.09436]
[1766985783300,0.0250297,90184.0,90166.0,0.00016631]
[1766985783604,0.0111016,90172.0,90166.0,0.08580631]
[1766985783796,0.0111012,90175.0,90166.0,0.08580631]
[1766985786803,0.09452631,90185.0,90166.0,0.08580631]
[1766985786804,0.011102,90169.0,90166.0,0.01000001]
[1766985787100,0.0111018,90170.0,90160.0,0.05564]
[1766985787299,0.0111018,90170.0,90160.0,0.06564]
[1766985788798,0.09436,90172.0,90160.0,0.01]
[1766985789098,0.0111023,90166.0,90160.0,0.03]
[1766985789705,0.0111019,90169.0,90160.0,0.03]
[1766985791006,0.05564,90170.0,90160.0,0.03]
[1766985791194,0.15,90171.0,90160.0,0.03]
[1766985791400,0.07188625,90191.0,90160.0,0.03]
[1766985791597,0.02502417,90184.0,90160.0,0.03]
[1766985791791,0.08066417,90183.0,90160.0,0.03]
[1766985792002,0.02502417,90182.0,90160.0,0.03]
[1766985792201,0.11938417,90181.0,90160.0,0.03]
[1766985792401,0.0111009,90178.0,90160.0,0.0411029]
[1766985792601,0.02502417,90177.0,90160.0,0.0411029]
[1766985792798,0.0111009,90178.0,90160.0,0.0411029]
[1766985793004,0.02502232,90177.0,90160.0,0.0411029]
[1766985793298,0.0111009,90178.0,90160.0,0.03]
[1766985793504,0.0111011,90176.0,90160.0,0.03]
[1766985793708,0.0111013,90174.0,90160.0,0.03]
[1766985795610,0.0111009,90177.0,90160.0,0.03]
[1766985795906,0.0111012,90175.0,90160.0,0.03]
[1766985802814,0.02490472,90174.0,90160.0,0.03]
[1766985803112,0.02490472,90173.0,90160.0,0.03]
[1766985803313,0.02490472,90172.0,90160.0,0.03]
[1766985803512,0.0111014,90173.0,90160.0,0.03]
[1766985803711,0.02490542,90172.0,90160.0,0.03]
[1766985803915,0.0111014,90173.0,90160.0,0.03]
[1766985804209,0.0111017,90171.0,90160.0,0.03]
[1766985810319,0.02491873,90170.0,90160.0,0.03]
[1766985810520,0.0111017,90171.0,90160.0,0.03]
[1766985810725,0.02491873,90170.0,90160.0,0.03]
[1766985810922,0.0111017,90171.0,90160.0,0.03]
[1766985811324,0.0249081,90170.0,90160.0,0.03]
[1766985811617,0.0111017,90171.0,90160.0,0.03]
[1766985811821,0.02490813,90170.0,90160.0,0.03]
[1766985812022,0.0111014,90173.0,90160.0,0.03]
[1766985812222,0.09436,90181.0,90160.0,0.03]
[1766985812223,0.0111017,90171.0,90160.0,0.03]
[1766985812424,0.02490813,90170.0,90160.0,0.03]
[1766985812826,0.0111013,90174.0,90160.0,0.03]
[1766985813124,0.02491229,90173.0,90160.0,0.03]
[1766985813326,0.02491761,90172.0,90160.0,0.03]
[1766985813516,0.0111013,90174.0,90160.0,0.03]
[1766985813712,0.02491764,90173.0,90160.0,0.03]
[1766985813926,0.02491764,90172.0,90160.0,0.03]
[1766985814224,0.0111013,90174.0,90160.0,0.03]
[1766985814426,0.02492276,90173.0,90160.0,0.03]
[1766985814625,0.02492276,90172.0,90160.0,0.03]
[1766985814827,0.0111013,90174.0,90160.0,0.03]
[1766985815125,0.02492378,90173.0,90160.0,0.03]
[1766985815321,0.02492378,90172.0,90160.0,0.03]
[1766985815521,0.02492378,90171.0,90160.0,0.03]
[1766985815725,0.0111013,90174.0,90160.0,0.03]
[1766985815929,0.0249313,90173.0,90160.0,0.03]
[1766985816226,0.0249313,90172.0,90160.0,0.03]
[1766985816428,0.0249313,90171.0,90160.0,0.03]
[1766985816628,0.0249313,90170.0,90160.0,0.03]
[1766985816823,0.0111013,90174.0,90160.0,0.03]
[1766985817029,0.02493726,90173.0,90161.0,0.0111028]
[1766985817226,0.02493726,90172.0,90161.0,0.0411028]
[1766985817429,0.02493726,90171.0,90161.0,0.0411028]
[1766985817627,0.0111009,90178.0,90161.0,0.0411028]
[1766985817927,0.02493914,90177.0,90161.0,0.0411028]
[1766985818125,0.02493914,90176.0,90161.0,0.0411028]
[1766985818328,0.02493914,90175.0,90161.0,0.0411028]
[1766985818528,0.02493914,90174.0,90161.0,0.0411028]
[1766985819824,0.02493914,90174.0,90161.0,0.03]
[1766985822932,0.02493914,90174.0,90162.0,0.0111027]
[1766985823131,0.02493914,90174.0,90162.0,0.0411027]
[1766985823543,0.02493914,90174.0,90162.0,0.03]
[1766985836750,0.21958139,90172.0,90156.0,0.00016631]
[1766985837057,0.0111022,90167.0,90156.0,0.01016631]
[1766985838352,0.05564,90168.0,90156.0,0.01016631]
[1766985842950,0.02495004,90167.0,90156.0,0.01016631]
[1766985843151,0.02495004,90166.0,90156.0,0.01016631]
[1766985843358,0.05564,90168.0,90156.0,0.01016631]
[1766985843546,0.02494952,90167.0,90156.0,0.01016631]
[1766985843746,0.02494952,90166.0,90156.0,0.01016631]
[1766985844054,0.05564,90168.0,90156.0,0.01016631]
[1766985844255,0.02494968,90167.0,90156.0,0.01016631]
[1766985844554,0.02494968,90166.0,90156.0,0.01016631]
[1766985844854,0.05564,90168.0,90156.0,0.01016631]
[1766985845055,0.02495156,90167.0,90156.0,0.01016631]
[1766985845256,0.02495156,90166.0,90156.0,0.01016631]
[1766985845447,0.05564,90168.0,90156.0,0.01016631]
[1766985845647,0.05564,90168.0,90159.0,0.011103]
[1766985845851,0.02595404,90168.0,90159.0,0.041103]
[1766985847356,0.05564,90172.0,90159.0,0.041103]
[1766985847657,0.05564,90172.0,90162.0,0.0111027]
[1766985847859,0.05564,90172.0,90162.0,0.0411027]
[1766985856263,0.05564,90172.0,90164.0,0.0111024]
[1766985856468,0.05564,90172.0,90164.0,0.0411024]
[1766985856662,0.21958139,90180.0,90164.0,0.03]
[1766985856860,0.17495465,90179.0,90164.0,0.0411025]
[1766985857061,0.02495465,90178.0,90164.0,0.0411025]
[1766985857260,0.02495465,90177.0,90164.0,0.0411025]
[1766985857461,0.02495465,90176.0,90164.0,0.0411025]
[1766985857664,0.02495465,90175.0,90164.0,0.0411025]
[1766985857864,0.02495465,90174.0,90164.0,0.03]
[1766985858167,0.05564,90173.0,90164.0,0.03]
[1766985860664,0.00016631,90185.0,90164.0,0.03]
[1766985860665,0.05564,90178.0,90164.0,0.03]
[1766985861065,0.05564,90178.0,90167.0,0.011102]
[1766985861268,0.05564,90179.0,90167.0,0.041102]
[1766985861671,0.0111001,90184.0,90167.0,0.03]
[1766985861959,0.0111004,90182.0,90167.0,0.03]
[1766985862265,0.02495107,90181.0,90167.0,0.03]
[1766985862569,0.30017246,90180.0,90167.0,0.03]
[1766985862770,0.05564,90180.0,90167.0,0.03]
[1766985865258,0.0111004,90182.0,90167.0,0.03]
[1766985865466,0.05564,90180.0,90167.0,0.03]
[1766985870568,0.02494095,90179.0,90167.0,0.03]
[1766985870870,0.02494095,90178.0,90167.0,0.03]
[1766985871172,0.05564,90180.0,90167.0,0.03]
[1766985871476,0.02494142,90179.0,90167.0,0.03]
[1766985871669,0.02494142,90178.0,90167.0,0.03]
[1766985871868,0.0111011,90176.0,90167.0,0.03]
[1766985872680,0.27522139,90180.0,90167.0,0.03]
[1766985872681,0.0111007,90179.0,90167.0,0.03]
[1766985872977,0.02494243,90178.0,90167.0,0.03]
[1766985873180,0.02494356,90177.0,90167.0,0.03]
[1766985873380,0.0111007,90179.0,90167.0,0.03]
[1766985873681,0.02494356,90178.0,90167.0,0.03]
[1766985873870,0.02494356,90177.0,90167.0,0.03]
[1766985874075,0.0111007,90179.0,90167.0,0.03]
[1766985874269,0.0111009,90177.0,90167.0,0.03]
[1766985877384,0.27522139,90180.0,90156.0,0.00016631]
[1766985877583,0.27522139,90180.0,90156.0,0.03016631]
[1766985877584,0.21958139,90171.0,90156.0,0.03016631]
[1766985877884,0.05564,90173.0,90156.0,0.03016631]
[1766985878084,0.011102,90168.0,90156.0,0.03016631]
[1766985884180,0.0111023,90166.0,90156.0,0.03016631]
[1766985884881,0.0111023,90166.0,90156.0,0.08580631]
[1766985885890,0.0111019,90169.0,90156.0,0.08580631]
[1766985886188,0.21958139,90170.0,90156.0,0.08580631]
[1766985887987,0.23068319,90170.0,90153.0,0.09436]
[1766985888293,0.23068319,90170.0,90157.0,0.05564]
[1766985888489,0.0111018,90170.0,90157.0,0.08564]
[1766985890289,0.0111021,90168.0,90157.0,0.08564]
[1766985891294,0.0111016,90171.0,90157.0,0.08564]
[1766985891500,0.02491448,90170.0,90157.0,0.08564]
[1766985891692,0.0111016,90171.0,90157.0,0.08564]
[1766985891993,0.02491455,90170.0,90157.0,0.08564]
[1766985892188,0.0111016,90171.0,90157.0,0.08564]
[1766985892494,0.02491518,90170.0,90157.0,0.08564]
[1766985892688,0.0111016,90171.0,90157.0,0.08564]
[1766985892890,0.0111019,90169.0,90157.0,0.03]
[1766985893189,0.0111021,90167.0,90157.0,0.03]
[1766985893690,0.0111027,90163.0,90157.0,0.01]
[1766985893883,0.0111027,90163.0,90157.0,0.03]
[1766985894084,0.0111027,90163.0,90157.0,0.01]
[1766985894386,0.0111019,90169.0,90157.0,0.03]
[1766985894697,0.0249142,90168.0,90157.0,0.03]
[1766985894994,0.0249142,90167.0,90157.0,0.03]
[1766985895192,0.05564,90173.0,90157.0,0.03]
[1766985895391,0.0111022,90167.0,90157.0,0.03]
[1766985899201,0.05564,90173.0,90157.0,0.03]
[1766985899398,0.02491545,90172.0,90150.0,0.09436]
[1766985899697,0.0111031,90159.0,90150.0,0.18]
[1766985900489,0.00016631,90164.0,90150.0,0.01]
[1766985900695,0.08055489,90163.0,90143.0,0.00221871]
[1766985900901,0.02491489,90162.0,90143.0,0.03000001]
[1766985901094,0.02491489,90161.0,90143.0,0.03000001]
[1766985901287,0.02491489,90160.0,90143.0,0.03000001]
[1766985901494,0.02491489,90159.0,90143.0,0.03000001]
[1766985901692,0.0111041,90151.0,90143.0,0.03000001]
[1766985901892,0.05564,90163.0,90143.0,0.03000001]
[1766985902100,0.0111048,90146.0,90143.0,1e-08]
[1766985902284,0.0111048,90146.0,90143.0,0.01]
[1766985902484,0.0111048,90146.0,90143.0,0.03]
[1766985902892,0.0111048,90146.0,90134.0,0.01744]
[1766985903197,0.05564,90163.0,90134.0,0.03]
[1766985903393,0.02489327,90162.0,90134.0,0.03]
[1766985903595,0.0111051,90143.0,90134.0,0.03]
[1766985905286,0.05564,90153.0,90134.0,0.03]
[1766985905490,0.02488508,90152.0,90129.0,0.03844]
[1766985905690,0.0111057,90139.0,90129.0,0.06844]
[1766985909292,0.0111052,90142.0,90129.0,0.06844]
[1766985909492,0.0001664,90143.0,90129.0,0.06844]
[1766985912011,0.0001664,90143.0,90130.0,0.0111066]
[1766985912196,0.0001664,90143.0,90130.0,0.0411066]
[1766985913606,0.0001664,90143.0,90130.0,0.03]
[1766985915204,0.0944,90147.0,90131.0,0.0111066]
[1766985915398,0.0944,90147.0,90131.0,0.0411066]
[1766985915599,0.0111036,90156.0,90136.0,0.0111058]
[1766985915800,0.17512664,90155.0,90136.0,0.0411058]
[1766985915989,0.15004,90155.0,90136.0,0.0411058]
[1766985916193,0.0001664,90155.0,90136.0,0.0412722]
[1766985918004,0.0111037,90154.0,90136.0,0.0301664]
[1766985918306,0.0111041,90152.0,90136.0,0.0301664]
[1766985919899,0.0111043,90150.0,90136.0,0.0301664]
[1766985920302,0.0111046,90148.0,90136.0,0.0301664]
[1766985925302,0.0111048,90146.0,90136.0,0.0301664]
[1766985929405,0.0111047,90147.0,90136.0,0.0301664]
[1766985929606,0.02513962,90146.0,90136.0,0.0301664]
[1766985929805,0.02514447,90145.0,90136.0,0.0301664]
[1766985930008,0.0111047,90147.0,90136.0,0.0301664]
[1766985930207,0.02514663,90146.0,90136.0,0.0301664]
[1766985930408,0.02514663,90145.0,90136.0,0.0301664]
[1766985930713,0.0001664,90155.0,90137.0,0.0111058]
[1766985930915,0.03625085,90154.0,90137.0,0.03]
[1766985931115,0.011104,90152.0,90137.0,0.03]
[1766985931315,0.02514705,90151.0,90137.0,0.03]
[1766985933815,0.02514705,90150.0,90137.0,0.03]
[1766985934013,0.02514705,90149.0,90137.0,0.03]
[1766985934209,0.02514705,90148.0,90137.0,0.03]
[1766985934408,0.02514705,90147.0,90137.0,0.03]
[1766985934608,0.02514705,90146.0,90137.0,0.03]
[1766985934811,0.02514705,90145.0,90137.0,0.03]
[1766985935009,0.02514705,90144.0,90137.0,0.03]
[1766985935204,0.011102,90169.0,90137.0,0.03]
[1766985935205,0.05564,90161.0,90142.0,0.0111051]
[1766985935511,0.0944,90174.0,90155.0,0.0111036]
[1766985935713,0.0944,90174.0,90159.0,0.0111031]
[1766985935915,0.0944,90174.0,90159.0,0.03]
[1766985936111,0.0944,90174.0,90162.0,0.0111026]
[1766985936417,0.0944,90174.0,90162.0,0.03]
[1766985940424,0.1055013,90174.0,90162.0,0.03]
[1766985944031,0.0111015,90172.0,90162.0,0.03]
[1766985945922,0.1055014,90174.0,90162.0,0.03]
[1766985946320,0.0944,90174.0,90162.0,0.03]
[1766985947126,0.02490216,90173.0,90162.0,0.03]
[1766985947327,0.02490216,90172.0,90162.0,0.03]
[1766985947525,0.0944,90174.0,90162.0,0.03]
[1766985947726,0.01927215,90173.0,90162.0,0.03]
[1766985947923,0.0001664,90175.0,90162.0,0.03]
[1766985948235,0.05564,90174.0,90162.0,0.03]
[1766985950330,0.05564,90173.0,90162.0,0.03]
[1766985954238,0.0001664,90175.0,90162.0,0.03]
[1766985954538,0.05564,90173.0,90162.0,0.03]
[1766985954838,0.0111015,90172.0,90162.0,0.03]
[1766985955238,0.05564,90173.0,90162.0,0.03]
[1766985956438,0.0667415,90173.0,90162.0,0.03]
[1766985959734,0.02488874,90172.0,90162.0,0.03]
[1766985960039,0.0667415,90173.0,90162.0,0.03]
[1766985960236,0.02489322,90172.0,90162.0,0.03]
[1766985960449,0.0111015,90172.0,90162.0,0.03]
[1766985961242,0.02489639,90171.0,90162.0,0.03]
[1766985961441,0.0111015,90172.0,90162.0,0.03]
[1766985961641,0.02489759,90171.0,90162.0,0.03]
[1766985961843,0.0111015,90172.0,90162.0,0.03]
[1766985962043,0.02489759,90171.0,90162.0,0.03]
[1766985962243,0.0111015,90172.0,90162.0,0.03]
[1766985962436,0.02490394,90171.0,90162.0,0.03]
[1766985962637,0.0111015,90172.0,90162.0,0.03]
[1766985962837,0.02490394,90171.0,90162.0,0.03]
[1766985963038,0.0111015,90172.0,90162.0,0.03]
[1766985963238,0.02491168,90171.0,90162.0,0.03]
[1766985963447,0.02491168,90170.0,90162.0,0.03]
[1766985963646,0.0111015,90172.0,90162.0,0.03]
[1766985963846,0.02491239,90171.0,90162.0,0.03]
[1766985964140,0.02491239,90170.0,90162.0,0.03]
[1766985964339,0.02491239,90169.0,90162.0,0.03]
[1766985965744,0.011102,90168.0,90162.0,0.01]
[1766985965935,0.02491239,90167.0,90162.0,0.00487364]
[1766985967445,0.02491239,90167.0,90162.0,4e-08]
[1766985967749,0.02491239,90166.0,90162.0,4e-08]
[1766985968043,0.02491239,90165.0,90162.0,4e-08]
[1766985968248,0.0111028,90162.0,90146.0,0.05564]
[1766985968548,0.0111028,90162.0,90146.0,0.18]
[1766985971649,0.0667424,90166.0,90146.0,0.1911046]
[1766985971850,0.0111026,90164.0,90146.0,0.1911046]
[1766985976852,0.05564,90166.0,90146.0,0.18]
[1766985977054,0.02496162,90165.0,90146.0,0.18]
[1766985977366,0.0111031,90160.0,90146.0,0.18]
[1766985977555,0.0111031,90160.0,90146.0,0.03]
[1766985977863,0.0111031,90160.0,90147.0,0.05564]
[1766985978162,0.0111031,90160.0,90147.0,0.08564]
[1766985979064,0.23067056,90160.0,90147.0,0.08564]
[1766985980057,0.0111031,90160.0,90147.0,0.08564]
[1766985984367,0.23067056,90160.0,90147.0,0.08564]
[1766985986372,0.0111042,90151.0,90145.0,0.0001664]
[1766985986563,0.0667438,90154.0,90145.0,0.0301664]
[1766985986765,0.02496719,90153.0,90145.0,0.0301664]
[1766985986970,0.02496719,90152.0,90145.0,0.0301664]
[1766985987271,0.02496719,90151.0,90145.0,0.0301664]
[1766985987459,0.02496719,90150.0,90145.0,0.0301664]
[1766985987665,0.0667438,90154.0,90145.0,0.0301664]
[1766985987864,0.02538133,90153.0,90145.0,0.0301664]
[1766985988065,0.02538133,90152.0,90145.0,0.0301664]
[1766985988264,0.02538133,90151.0,90145.0,0.0301664]
[1766985988465,0.0667438,90154.0,90145.0,0.0301664]
[1766985988664,0.02537973,90153.0,90145.0,0.0301664]
[1766985988967,0.05564,90154.0,90145.0,0.0301664]
[1766985989176,0.02538287,90153.0,90145.0,0.0301664]
[1766985989368,0.05564,90154.0,90145.0,0.0301664]
[1766985989572,0.02537998,90153.0,90145.0,0.0301664]
[1766985989881,0.05564,90154.0,90145.0,0.0301664]
[1766985990174,0.02538019,90153.0,90145.0,0.0301664]
[1766985990378,0.05564,90154.0,90145.0,0.0301664]
[1766985990571,0.0253779,90153.0,90145.0,0.0301664]
[1766985990772,0.05564,90154.0,90145.0,0.0301664]
[1766985990967,0.02537629,90153.0,90145.0,0.0301664]
[1766985991276,0.05564,90154.0,90145.0,0.0301664]
[1766985991468,0.02537243,90153.0,90145.0,0.0301664]
[1766985991668,0.05564,90154.0,90145.0,0.0301664]
[1766985991969,0.0253732,90153.0,90145.0,0.0301664]
[1766985992170,0.05564,90154.0,90145.0,0.0301664]
[1766985992371,0.02537178,90153.0,90145.0,0.0301664]
[1766985992575,0.05564,90154.0,90145.0,0.0301664]
[1766985992780,0.02537147,90153.0,90145.0,0.0301664]
[1766985993079,0.05564,90154.0,90145.0,0.0301664]
[1766986005389,0.0667438,90154.0,90145.0,0.0301664]
[1766986005888,0.05564,90154.0,90145.0,0.03]
[1766986006480,0.0111042,90151.0,90145.0,0.03]
[1766986007187,0.0111042,90151.0,90135.0,0.05564]
[1766986007388,0.0111042,90151.0,90143.0,0.03221871]
[1766986011389,0.0255819,90150.0,90143.0,0.03221871]
[1766986011694,0.0111042,90151.0,90143.0,0.03221871]
[1766986011884,0.0255819,90150.0,90143.0,0.03221871]
[1766986012085,0.0111042,90151.0,90143.0,0.03221871]
[1766986012286,0.02558191,90150.0,90143.0,0.03221871]
[1766986012485,0.0111042,90151.0,90143.0,0.03221871]
[1766986012681,0.0111043,90149.0,90143.0,1e-08]
[1766986012885,0.0111047,90147.0,90143.0,1e-08]
[1766986013593,0.0111049,90145.0,90143.0,1e-08]
[1766986017694,0.011105,90144.0,90135.0,1e-08]
[1766986017995,0.011105,90144.0,90135.0,0.03000001]
[1766986020700,0.0111046,90147.0,90135.0,0.03000001]
[1766986022888,0.02558211,90146.0,90135.0,0.03000001]
[1766986023100,0.0001664,90157.0,90145.0,0.0111047]
[1766986023296,0.01084623,90158.0,90146.0,0.0111047]
[1766986023496,0.05564,90163.0,90146.0,0.0411047]